{"text_format":"1","workbook":"xlsx","n_sheets":1,"sheets":["EE 2335"],"not_rendered":{"charts":0,"images":0,"macros":1,"external_links":0,"defined_names":1,"comments":0,"pivot_tables":0},"unopened":[],"bounds":{"document_bytes":16777216,"sheet_cells":100000,"rows_first":2000,"rows_last":500,"rows_between":2000,"halvings":0,"cell_chars":16384,"cell_head_chars":4096},"cells_cut":0,"cells_raw":0,"read":"whole","date_system":"1900"}

{"sheet":"EE 2335","index":0,"n_rows":66,"n_cols":38,"rows_kept":66,"cut":false,"hidden":false,"merged":[[38,10,38,11],[38,12,38,13],[38,14,38,15],[38,16,38,17],[63,1,64,1],[63,2,63,6],[63,7,63,19],[64,2,64,6],[64,7,64,19],[61,1,62,1],[55,13,55,15],[55,16,55,18],[25,1,60,1],[25,2,25,19],[26,19,28,19],[52,3,52,10],[52,11,52,12],[52,13,52,15],[52,16,52,18],[53,3,53,10],[53,11,53,12],[53,13,53,15],[53,16,53,18],[48,2,49,18],[65,2,65,6],[65,7,65,19],[15,3,15,14],[15,15,16,17],[17,15,17,17],[18,15,18,17],[20,15,20,17],[15,18,16,19],[17,18,17,19],[18,18,18,19],[20,18,20,19],[56,2,57,18],[58,2,58,15],[58,16,58,17],[59,2,59,19],[60,2,60,19],[61,2,62,6],[61,7,62,19],[54,3,54,10],[54,11,54,12],[54,13,54,15],[54,16,54,18],[55,3,55,10],[55,11,55,12],[50,2,50,10],[50,11,50,12],[50,13,50,15],[50,16,50,18],[51,3,51,10],[51,11,51,12],[51,13,51,15],[51,16,51,18],[46,3,46,10],[46,11,46,12],[46,13,46,15],[46,16,46,18],[47,3,47,10],[47,11,47,12],[47,13,47,15],[47,16,47,18],[44,3,44,10],[44,11,44,12],[44,13,44,15],[44,16,44,18],[45,3,45,10],[45,11,45,12],[45,13,45,15],[45,16,45,18],[40,2,41,18],[42,2,42,10],[42,11,42,12],[42,13,42,15],[42,16,42,18],[43,3,43,10],[43,11,43,12],[43,13,43,15],[43,16,43,18],[33,16,33,17],[39,2,39,5],[39,6,39,7],[39,8,39,9],[39,10,39,11],[39,12,39,13],[39,14,39,15],[39,16,39,17],[33,2,33,5],[33,6,33,7],[33,8,33,9],[33,10,33,11],[33,12,33,13],[33,14,33,15],[36,2,36,5],[36,6,36,7],[36,8,36,9],[36,10,36,11],[36,12,36,13],[36,14,36,15],[36,16,36,17],[38,2,38,5],[38,6,38,7],[38,8,38,9],[27,18,28,18],[28,8,28,9],[31,16,31,17],[32,2,32,5],[32,6,32,7],[32,8,32,9],[32,10,32,11],[32,12,32,13],[32,14,32,15],[32,16,32,17],[31,2,31,5],[31,6,31,7],[31,8,31,9],[31,10,31,11],[31,12,31,13],[31,14,31,15],[15,2,16,2],[21,2,21,19],[29,16,29,17],[30,2,30,5],[30,6,30,7],[30,8,30,9],[30,10,30,11],[30,12,30,13],[30,14,30,15],[30,16,30,17],[28,10,28,11],[28,12,28,13],[28,14,28,15],[29,2,29,5],[29,6,29,7],[29,8,29,9],[29,10,29,11],[29,12,29,13],[29,14,29,15],[26,2,28,5],[26,6,28,7],[26,8,26,18],[27,8,27,15],[27,16,28,17],[8,1,13,1],[8,2,8,19],[9,2,9,19],[10,3,10,19],[11,3,11,19],[13,3,13,19],[0,0,0,19],[1,0,65,0],[1,1,2,1],[1,3,1,19],[2,3,2,19],[3,3,3,19],[4,3,4,19],[5,7,5,19],[6,3,6,19],[7,3,7,19],[22,1,24,1],[22,2,22,5],[22,7,22,19],[23,2,24,5],[23,7,23,19],[24,7,24,19],[14,1,21,1],[14,2,14,19],[12,3,12,19],[19,18,19,19],[19,15,19,17],[37,2,37,5],[37,6,37,7],[37,8,37,9],[37,10,37,11],[37,12,37,13],[37,14,37,15],[37,16,37,17],[34,2,34,5],[34,6,34,7],[34,8,34,9],[34,10,34,11],[34,12,34,13],[34,14,34,15],[34,16,34,17],[35,2,35,5],[35,6,35,7],[35,8,35,9],[35,10,35,11],[35,12,35,13],[35,14,35,15],[35,16,35,17]]}
[]
[null,1,"Name of Course","English Communication Skills 1",null,null,null,null,null,null,null,null,null,null,null,null,null,null,null,null,null,null,null,null,null,null,null,null,null,null,null,null,null,null,null,null,1,1]
[null,null,"Course Code","ELS 1212",null,null,null,null,null,null,null,null,null,null,null,null,null,null,null,null,null,null,null,null,null,null,null,null,null,null,null,null,null,null,null,"√",2,2]
[null,2,"Synopsis","This course exposes students to knowledge in communicating in English language by using the appropriate methodology. Skills and talent can be polished to be an effective communicator in verbal and non-verbal communication which utilises four main skills; writing, reading, listening and speaking in academic and non-academic environment.",null,null,null,null,null,null,null,null,null,null,null,null,null,null,null,null,{"$f":"D4","v":"This course exposes students to knowledge in communicating in English language by using the appropriate methodology. Skills and talent can be polished to be an effective communicator in verbal and non-verbal communication which utilises four main skills; writing, reading, listening and speaking in academic and non-academic environment."},null,null,null,null,null,null,null,null,null,null,null,null,null,null,null,3,3]
[null,3,"Name (s) of Academic Staff","Siti Nurul Atini Binti Ibrahim",null,null,null,null,null,null,null,null,null,null,null,null,null,null,null,null,null,null,null,null,null,null,null,null,null,null,null,null,null,null,null,null,4,4]
[null,4,"Semester ","Semester",1,"Year ",1,null,null,null,null,null,null,null,null,null,null,null,null,null,null,null,null,null,null,null,null,null,null,null,null,null,null,null,null,null,5]
[null,5,"Credit Value",{"$f":"IF(T59=40,1,(IF(T59=80,2,(IF(T59=120,3,(IF(T59=160,4,IF(T59=200,5,IF(T59=240,6,\"\")))))))))","v":2},null,null,null,null,null,null,null,null,null,null,null,null,null,null,null,null,null,null,null,null,null,null,null,null,null,null,null,null,null,null,null,null,6]
[null,6,"Pre-requisite / Co-requisite (if any)","ELS 1112 Basic English Skills ",null,null,null,null,null,null,null,null,null,null,null,null,null,null,null,null,null,null,null,null,null,null,null,null,null,null,null,null,null,null,null,null,7]
[null,7,"Course Learning Outcomes (CLO): At the end of the course the students will be able to:",null,null,null,null,null,null,null,null,null,null,null,null,null,null,null,null,null,null,null,null,null,null,null,null,null,null,null,null,null,null,null,null,null,8]
[null,null,"(example) - explain the basic principles of immunisation (C2, PLO1)",null,null,null,null,null,null,null,null,null,null,null,null,null,null,null,null,null,null,null,null,null,null,null,null,null,null,null,null,null,null,null,null,null,9]
[null,null,"CLO1","Write 150-200 words essay with correct use of Grammar",null,null,null,null,null,null,null,null,null,null,null,null,null,null,null,null,{"$f":"D11","v":"Write 150-200 words essay with correct use of Grammar"},null,null,null,null,null,null,null,null,null,null,null,null,null,null,null,10]
[null,null,"CLO2","Extract passages of  various genres ",null,null,null,null,null,null,null,null,null,null,null,null,null,null,null,null,{"$f":"D12","v":"Extract passages of  various genres "},null,null,null,null,null,null,null,null,null,null,null,null,null,null,null,11]
[null,null,"CLO3","Extract information from listening texts"]
[null,null,"CLO4","Express opinion and relay information confidently and correctly",null,null,null,null,null,null,null,null,null,null,null,null,null,null,null,null,null,null,null,null,null,null,null,null,null,null,null,null,null,null,null,null,12]
[null,8,"Mapping of the Course Learning Outcomes to the Programme Learning Outcomes, Teaching Methods and Assessment:"]
[null,null,"Course Learning Outcomes (CLO)","Programme Learning Outcomes (PLO)",null,null,null,null,null,null,null,null,null,null,null,"Teaching Methods",null,null,"Assessment"]
[null,null,null,"PLO1","PLO2","PLO3","PLO4","PLO5","PLO6","PLO7","PLO8","PLO9","PLO10","PLO11","PLO12"]
[null,null,"CLO1","√",null,"√","√",null,null,null,null,null,null,null,null,"Lecture | Discussion",null,null," Assignment",null,{"$f":"S18","v":" Assignment"}]
[null,null,"CLO2","√",null,null,"√","√",null,null,null,null,null,null,null,"Lecture ",null,null,"Assignment | Test |Quiz"]
[null,null,"CLO3","√",null,"√","√",null,null,null,null,null,null,null,null,"Lecture | Lab Activities | Presentation",null,null,"In class Activity"]
[null,null,"CLO4","√",null,"√","√",null,null,null,null,null,null,null,null,"Discussion | Presentation",null,null,"Demonstration"]
[null,null,"(The description must be read together with standards 2.1.2, 2.2.1 and 2.2.2 in Area 2 - pages 16 & 18)"]
[null,9,"Transferable skills (if applicable)",null,null,null,1,"Self-Management and Learning"]
[null,null,"(Skills learned in the course of study which can be useful and utilised in other settings)",null,null,null,2,"Communication and Teamwork"]
[null,null,null,null,null,null,3,"Problem Solving and Information Technology"]
[null,10,"Distribution of Students Learning Time (SLT)"]
[null,null,"Course Content Outline",null,null,null,"CLO",null,"Teaching and Learning Activities",null,null,null,null,null,null,null,null,null,null,"SLT"]
[null,null,null,null,null,null,null,null,"Guided learning (F2F)",null,null,null,null,null,null,null,"Guided Learning (NF2F) eg: e-learning",null,"Independent learning (NF2F)"]
[null,null,null,null,null,null,null,null,"L",null,"T",null,"P",null,"O"]
[null,null,"Free Writing in Journal Book",null,null,null,"CLO 1",null,4,null,null,null,0,null,null,null,null,null,2,{"$f":"SUM(I30:S30)","v":6}]
[null,null,"Briefing of Course Outline\nGrammar\n1.1 Parts of Speech\n1.2 Sentence Patterns\n1.3 Tenses",null,null,null,"CLO 1",null,2,null,null,null,null,null,0,null,null,null,2,{"$f":"SUM(I31:S31)","v":4},{"$f":"C31","v":"Briefing of Course Outline\nGrammar\n1.1 Parts of Speech\n1.2 Sentence Patterns\n1.3 Tenses"}]
[null,null,"Writing\n2.1 Sentence Writing\n2.2 Essay Format\n2.3Essay Writing\n       - Argumentative \n       - Comparison & Contrast",null,null,null,"CLO 1",null,2,null,null,null,null,null,null,null,null,null,3,5,{"$f":"C32","v":"Writing\n2.1 Sentence Writing\n2.2 Essay Format\n2.3Essay Writing\n       - Argumentative \n       - Comparison & Contrast"}]
[null,null,"Writing\n2.1 Sentence Writing\n2.2 Essay Format\n2.3Essay Writing\n       - Argumentative \n       - Comparison & Contrast",null,null,null,"CLO 1",null,2,null,null,null,null,null,null,null,null,null,3,5,"Writing\n2.1 Sentence Writing\n2.2 Essay Format\n2.3Essay Writing\n       - Argumentative \n       - Comparison & Contrast"]
[null,null,"Reading\n3.1 Skimming & Scanning\n3.2 Information Transfer\n3.3 Contextual Clues\n3.4 Making Inferences\n3.5 Making Predictions",null,null,null,"CLO 3",null,2,null,null,null,null,null,null,null,null,null,3,5,"Reading\n3.1 Skimming & Scanning\n3.2 Information Transfer\n3.3 Contextual Clues\n3.4 Making Inferences\n3.5 Making Predictions"]
[null,null,"Reading\n3.1 Skimming & Scanning\n3.2 Information Transfer\n3.3 Contextual Clues\n3.4 Making Inferences\n3.5 Making Predictions\n",null,null,null,"CLO 2",null,2,null,4,null,null,null,null,null,null,null,3,9,"Reading\n3.1 Skimming & Scanning\n3.2 Information Transfer\n3.3 Contextual Clues\n3.4 Making Inferences\n3.5 Making Predictions\n"]
[null,null,"Listening\n4.1 General & Specific Ideas\n4.2 Note-Taking\n",null,null,null,"CLO 3",null,2,null,null,null,null,null,null,null,null,null,4,6,"Listening\n4.1 General & Specific Ideas\n4.2 Note-Taking\n"]
[null,null,"Listening\n4.1 General & Specific Ideas\n4.2 Note-Taking",null,null,null,"CLO 3",null,2,null,null,null,null,null,null,null,null,null,2,4,"Listening\n4.1 General & Specific Ideas\n4.2 Note-Taking"]
[null,null,"Speaking\n4.1 Impromptu Speech Activities\n4.2 Persuasive Speech\n4.3 Group Discussion – Persuasion & Negotiation\n",null,null,null,"CLO 4",null,2,null,null,null,null,null,null,null,null,null,2,{"$f":"SUM(I38:S38)","v":4},{"$f":"C38","v":"Speaking\n4.1 Impromptu Speech Activities\n4.2 Persuasive Speech\n4.3 Group Discussion – Persuasion & Negotiation\n"}]
[null,null,"Speaking\n5.1 Impromptu Speech Activities\n5.2 Persuasive Speech\n5.3 Group Discussion – Persuasion & Negotiation\n",null,null,null,"CLO 4",null,4,null,null,null,null,null,null,null,null,null,2,6,"Speaking\n5.1 Impromptu Speech Activities\n5.2 Persuasive Speech\n5.3 Group Discussion – Persuasion & Negotiation\n"]
[null,null,"Speaking\n5.1 Impromptu Speech Activities\n5.2 Persuasive Speech\n5.3 Group Discussion – Persuasion & Negotiation",null,null,null,"CLO 4",null,2,null,null,null,null,null,null,null,null,null,2,4,"Speaking\n5.1 Impromptu Speech Activities\n5.2 Persuasive Speech\n5.3 Group Discussion – Persuasion & Negotiation"]
[null,null,"Total",null,null,null,null,null,null,null,null,null,null,null,null,null,null,null,null,{"$f":"SUM(T30:T40)","v":58},"Total"]
[]
[null,null,"Continuous Assessment",null,null,null,null,null,null,null,null,"Percentage (%)",null,"F2F",null,null,"NF2F",null,null,"SLT"]
[null,null,1,"Listening Test",null,null,null,null,null,null,null,10,null,0.5,null,null,1.5,null,null,{"$f":"SUM(N44:S44)","v":2}]
[null,null,2,"Writing Assignment ",null,null,null,null,null,null,null,15,null,1.5,null,null,3,null,null,{"$f":"SUM(N45:S45)","v":4.5},{"$f":"D45","v":"Writing Assignment "}]
[null,null,3,"Reading Test ",null,null,null,null,null,null,null,10,null,1.5,null,null,2,null,null,3.5,{"$f":"D46","v":"Reading Test "}]
[null,null,4,"Persuasive Speech",null,null,null,null,null,null,null,10,null,1.5,null,null,2,null,null,3.5,"Persuasive Speech"]
[null,null,5,"Journal Writing",null,null,null,null,null,null,null,5,null,null,null,null,0.5,null,null,0.5,"Journal Writing"]
[null,null,"Total",null,null,null,null,null,null,null,null,null,null,null,null,null,null,null,null,{"$f":"SUM(T44:T48)","v":14},0]
[]
[null,null,"Final Assessment",null,null,null,null,null,null,null,null,"Percentage (%)",null,"F2F",null,null,"NF2F",null,null,"SLT"]
[null,null,1,"Final Examination",null,null,null,null,null,null,null,50,null,2,null,null,6,null,null,{"$f":"SUM(N52:S52)","v":8}]
[null,null,2,null,null,null,null,null,null,null,null,null,null,null,null,null,null,null,null,{"$f":"SUM(N53:S53)","v":0},{"$f":"D53","v":0}]
[null,null,3,null,null,null,null,null,null,null,null,null,null,null,null,null,null,null,null,0,{"$f":"D54","v":0}]
[null,null,4,null,null,null,null,null,null,null,null,null,null,null,null,null,null,null,null,0,0]
[null,null,5,null,null,null,null,null,null,null,null,null,null,null,null,null,null,null,null,0]
[null,null,null,null,null,null,null,null,null,null,null,null,null,null,null,null,null,null,null,{"$f":"SUM(T52:T56)","v":8},0]
[]
[null,null,"**Please tick (ü) in this course is Latihan Industri / Clinical Placement / Practicum / WBL using 2 weeks; 1 credit formula",null,null,null,null,null,null,null,null,null,null,null,null,null,null,null,null,{"$f":"+T41+T49+T57","v":80}]
[null,null,"L= Lecture, T=Tutorial, P=Practical, O=Others, F2F=Face to Face, NF2F=None Face to Face"]
[null,null,"*Indicate the CLO based on the CLO's numbering in item 8"]
[null,11,"Identify special requirement to deliver the course (e.g: software, nursery, computer lab, simulation room, etc)",null,null,null,null,"None"]
[null,null,null,null,null,null,null,null,null,null,null,null,null,null,null,null,null,null,null,null,{"$f":"H63","v":0}]
[null,12,"References:",null,null,null,null,"1. Azar, B.S., Hagen, S.A. (2011). Fundamentals of English Grammar – 4th Edition.USA :Pearson Longman."]
[null,null,"(include required and further readings, and should be the most current)",null,null,null,null,"2. Seng, E.S.K. (2013). Practical English. Malaysia : Cengage Learning\n3. Curzan, A., Adams, M.A. (2013) How English Work: A Linguistics Introduction. Pearson",null,null,null,null,null,null,null,null,null,null,null,null,{"$f":"H65","v":"2. Seng, E.S.K. (2013). Practical English. Malaysia : Cengage Learning\n3. Curzan, A., Adams, M.A. (2013) How English Work: A Linguistics Introduction. Pearson"}]
[null,13,"Other additional Information",null,null,null,null,"Last updated : 16st April 2018",null,null,null,null,null,null,null,null,null,null,null,null,"Last updated : 16st April 2018"]